bitfinex/quotes_ETHUSD_20251021
["timestamp","ask_amount","ask_price","bid_price","bid_amount"]
[1761028437943,1.11351663,3893.7,3893.6,3.09479986]
[1761028438143,1.11351663,3893.7,3893.6,2.56831723]
[1761028439158,0.128,3893.6,3892.9,0.128]
[1761028439463,0.128,3893.6,3893.3,2.56847526]
[1761028439635,0.128,3893.6,3893.2,2.56856838]
[1761028440042,0.128,3893.6,3893.4,2.568385]
[1761028440241,0.5719,3893.6,3893.4,2.568385]
[1761028440664,0.4638,3893.5,3893.1,2.56858607]
[1761028440871,5.70917105,3893.4,3893.3,2.56851514]
[1761028441165,5.70917105,3893.4,3893.1,0.52653055]
[1761028441749,5.83717105,3893.4,3893.0,2.56871307]
[1761028441964,5.83717105,3893.4,3893.1,2.56862258]
[1761028442364,5.83717105,3893.4,3893.3,2.56851514]
[1761028442561,0.128,3893.4,3893.3,2.56851514]
[1761028444364,1.11351663,3893.7,3893.3,2.56851514]
[1761028444365,1.11351663,3893.7,3893.6,2.56831723]
[1761028444566,1.11351663,3893.7,3893.6,3.35679042]
[1761028444773,1.11351663,3893.7,3893.6,3.53629042]
[1761028445148,1.11351663,3893.7,3893.6,3.35679042]
[1761028446449,1.11351663,3893.7,3893.6,3.53629042]
[1761028448084,1.11351663,3893.7,3893.6,3.35679042]
[1761028448249,1.11351663,3893.7,3893.6,2.56831723]
[1761028450184,1.11351663,3893.7,3893.5,2.56836314]
[1761028450480,1.11351663,3893.7,3893.6,2.56831723]
[1761028453881,1.57731663,3893.7,3892.6,1.9075]
[1761028454188,1.11351663,3893.7,3893.6,2.56831723]
[1761028454884,1.11351663,3893.7,3893.5,2.56836779]
[1761028455383,0.4638,3893.6,3893.5,2.56836779]
[1761028455581,0.4638,3893.6,3893.1,0.128]
[1761028455582,1.11351663,3893.7,3893.6,2.56831723]
[1761028456356,1.57731663,3893.7,3893.6,2.56831723]
[1761028456556,1.57731663,3893.7,3893.4,2.56842884]
[1761028456757,1.57731663,3893.7,3893.5,2.56832981]
[1761028457056,0.4518,3893.6,3893.2,2.56856892]
[1761028457255,0.128,3893.4,3893.1,2.56863955]
[1761028457461,0.128,3893.4,3893.1,2.56862879]
[1761028457776,0.128,3893.4,3892.7,0.128]
[1761028457777,0.5798,3893.4,3893.0,2.56869555]
[1761028457966,0.128,3893.4,3893.3,2.56851514]
[1761028458156,0.128,3893.4,3893.1,2.56858216]
[1761028458983,0.128,3893.4,3893.2,2.5685618]
[1761028459560,0.128,3893.4,3893.1,2.56864193]
[1761028459993,0.5798,3893.4,3893.1,2.56864193]
[1761028460588,0.5798,3893.4,3893.0,2.83837371]
[1761028460895,0.4518,3893.3,3893.0,0.26966956]
[1761028461097,0.4518,3893.3,3892.7,0.128]
[1761028461334,0.3465,3892.8,3892.2,2.69718724]
[1761028461487,0.128,3892.8,3892.6,2.56896563]
[1761028461688,0.128,3892.8,3892.2,0.128]
[1761028462019,0.128,3892.8,3892.6,2.56896394]
[1761028462317,0.128,3892.8,3892.7,2.56891103]
[1761028463126,0.128,3892.8,3892.7,3.08270545]
[1761028464007,0.128,3892.8,3892.7,2.56891103]
[1761028464707,0.5798,3892.8,3892.7,2.56891103]
[1761028464907,0.128,3892.8,3892.7,2.56891103]
[1761028465310,0.5798,3892.8,3892.7,2.56891103]
[1761028465507,0.5798,3892.8,3892.4,2.56904449]
[1761028465824,0.4518,3892.7,3892.4,2.56904449]
[1761028466323,0.4518,3892.7,3892.2,2.69723476]
[1761028466324,0.4518,3892.7,3892.2,2.56918887]
[1761028466621,0.128,3892.4,3892.3,2.5691304]
[1761028466932,0.128,3892.4,3892.1,2.57129655]
[1761028466933,0.5798,3892.4,3892.1,0.002]
[1761028467141,5.70917105,3892.2,3892.1,0.002]
[1761028467527,6.16097105,3892.2,3892.1,0.002]
[1761028467700,8.73021209,3892.2,3892.1,0.002]
[1761028468029,10.45821209,3892.2,3892.1,0.002]
[1761028481340,10.00641209,3892.2,3892.1,0.002]
[1761028481515,10.47561209,3892.2,3892.1,0.002]
[1761028482620,7.90637105,3892.2,3892.1,0.002]
[1761028482818,7.43717105,3892.2,3892.1,0.002]
[1761028483239,7.90637105,3892.2,3892.1,0.002]
[1761028485319,10.47561209,3892.2,3892.1,0.002]
[1761028485720,1.728,3892.2,3892.1,0.002]
[1761028485918,1.728,3892.2,3892.1,2.57130705]
[1761028486233,1.728,3892.2,3892.1,0.002]
[1761028487143,8.27814959,3892.6,3892.1,0.002]
[1761028487144,8.27814956,3892.6,3892.1,0.002]
[1761028487441,1.728,3892.5,3892.1,0.002]
[1761028487735,5.70917105,3892.3,3892.1,0.002]
[1761028488139,0.4692,3892.2,3892.1,0.002]
[1761028489447,0.49508058,3892.2,3892.1,0.002]
[1761028490131,2.22408058,3892.2,3892.1,0.002]
[1761028492320,2.1982,3892.2,3892.1,0.002]
[1761028494341,4.79332162,3892.2,3892.1,0.002]
[1761028496263,4.79332162,3892.2,3891.7,0.002]
[1761028496264,2.56950511,3891.8,3891.7,0.002]
[1761028496550,8.30455674,3891.8,3891.7,0.002]
[1761028496751,3.14176907,3891.8,3891.7,0.002]
[1761028496955,8.85094012,3891.8,3891.7,0.002]
[1761028497153,10.57894012,3891.8,3891.7,0.002]
[1761028498189,16.28811117,3891.8,3891.7,0.002]
[1761028498569,10.57894012,3891.8,3891.7,0.002]
[1761028500776,11.73019323,3891.8,3891.7,0.002]
[1761028510011,1.83106396,3891.8,3891.7,0.002]
[1761028510215,1.728,3891.8,3891.7,0.002]
[1761028510376,4.76688569,3891.8,3891.7,0.002]
[1761028511579,4.32338569,3891.8,3891.7,0.002]
[1761028511792,4.29750511,3891.8,3891.7,0.002]
[1761028512979,4.76688569,3891.8,3891.7,0.002]
[1761028513504,4.8699531,3891.8,3891.7,0.002]
[1761028516119,4.40057252,3891.8,3891.7,0.002]
[1761028516318,1.83106741,3891.8,3891.7,0.002]
[1761028516524,1.728,3891.8,3891.7,0.002]
[1761028517210,1.728,3891.8,3891.7,0.1815]
[1761028518404,0.001,3892.2,3891.7,0.002]
[1761028518586,0.001,3892.2,3891.8,2.56950511]
[1761028519015,0.001,3892.2,3891.9,0.1795]
[1761028521016,0.001,3892.2,3891.9,2.74893063]
[1761028521200,0.128,3892.1,3892.0,0.20519373]
[1761028521518,0.128,3892.1,3892.0,2.7745668]
[1761028522739,0.001,3892.2,3892.1,2.56930705]
[1761028523033,0.001,3892.2,3892.1,2.74880705]
[1761028524199,0.001,3892.2,3891.7,0.002]
[1761028524389,0.001,3892.2,3892.1,2.56930705]
[1761028525099,0.001,3892.2,3892.0,2.56933153]
[1761028525603,0.001,3892.2,3892.1,2.56930705]
[1761028526100,0.001,3892.2,3891.7,0.002]
[1761028526321,0.128,3891.9,3891.7,0.002]
[1761028526522,1.729,3892.2,3891.7,2.57151312]
[1761028526820,0.001,3892.2,3891.7,0.1815]
[1761028527024,0.128,3891.9,3891.8,0.1795]
[1761028527399,0.128,3891.9,3891.8,2.74900511]
[1761028529122,0.128,3891.9,3891.8,2.77470016]
[1761028531647,0.001,3892.2,3892.1,2.56930705]
[1761028532144,0.001,3892.2,3892.1,2.59500012]
[1761028532313,0.001,3892.2,3892.1,3.26524611]
[1761028532650,0.001,3892.2,3891.8,2.56950511]
[1761028532804,0.001,3892.2,3892.0,2.56932368]
[1761028533002,0.001,3892.2,3891.9,2.56941925]
[1761028533347,0.457,3892.2,3891.9,2.56942954]
[1761028533528,0.001,3892.2,3891.7,0.002]
[1761028533717,0.001,3892.2,3892.1,2.56930705]
[1761028534717,0.001,3892.2,3892.1,2.74880705]
[1761028535120,0.001,3892.2,3892.1,3.28062682]
[1761028535658,0.001,3892.2,3892.1,3.10112682]
[1761028536460,0.001,3892.2,3891.7,0.002]
[1761028536759,0.001,3892.2,3892.1,2.56930705]
[1761028538119,0.457,3892.2,3891.7,2.5715608]
[1761028538322,0.128,3892.0,3891.9,2.56938509]
[1761028539543,0.128,3892.0,3891.9,2.56943909]
[1761028540240,0.128,3892.0,3891.8,2.56948809]
[1761028540550,0.128,3892.0,3891.7,0.002]
[1761028540551,0.584,3892.0,3891.7,2.57155046]
[1761028540753,0.584,3892.0,3891.7,0.002]
[1761028541255,0.128,3892.0,3891.8,2.56949912]
[1761028542672,0.128,3892.0,3891.7,2.57154603]
[1761028542973,0.584,3892.0,3891.7,0.002]
[1761028543175,0.26218058,3891.9,3891.7,0.002]
[1761028543355,1.01479404,3891.8,3891.7,0.002]
[1761028543668,1.47079404,3891.8,3891.7,0.002]
[1761028545068,5.76829915,3891.8,3891.7,0.002]
[1761028545249,3.19879404,3891.8,3891.7,0.002]
[1761028545451,2.74279404,3891.8,3891.7,0.002]
[1761028545778,2.4203,3891.8,3891.7,0.002]
[1761028547638,0.48961875,3891.8,3891.7,2.57157113]
[1761028547844,0.2363,3892.8,3891.7,2.57157113]
[1761028547845,0.2363,3896.1,3893.6,0.50688]
[1761028548155,0.2363,3895.9,3893.9,2.23488]
[1761028548362,0.2363,3895.9,3894.1,0.50688]
[1761028548594,0.456,3895.6,3894.1,0.50688]
[1761028548735,0.456,3895.6,3894.0,0.02568053]
[1761028548736,0.02588058,3895.3,3894.0,0.77205868]
[1761028548943,6.86042416,3894.8,3893.2,1.728]
[1761028549167,0.456,3895.3,3893.0,2.56871307]
[1761028549372,6.86042416,3895.1,3893.4,2.56844917]
[1761028549576,0.02588058,3895.0,3893.5,2.5683832]
[1761028549773,3.57990708,3894.9,3893.9,2.56811735]
[1761028549999,0.40617877,3894.8,3894.0,2.56802095]
[1761028550191,0.02588058,3894.7,3894.0,2.56802095]
[1761028550406,0.86217877,3894.8,3893.7,2.56822605]
[1761028550714,1.9643,3893.8,3892.3,1.36670301]
[1761028550870,0.6519281,3893.7,3892.1,1.36670301]
[1761028551070,0.6519281,3893.7,3892.0,3.86718314]
[1761028551299,3.22018563,3893.7,3892.8,2.56881852]
[1761028551603,0.6519281,3893.7,3892.9,2.56877828]
[1761028551770,0.02588058,3893.7,3892.9,2.56877828]
[1761028551972,3.05013679,3893.7,3892.6,2.56896736]
[1761028552183,3.05013679,3893.7,3892.8,2.56883598]
[1761028552906,0.2363,3893.8,3891.8,1.728]
[1761028553075,0.2363,3893.8,3892.9,2.56872384]
[1761028553400,0.456,3893.7,3892.7,2.5688487]
[1761028553639,3.05014645,3893.7,3892.5,2.56903248]
[1761028554080,2.56839153,3893.5,3892.6,2.56895916]
[1761028554280,0.02588058,3893.4,3892.6,2.56895916]
[1761028554985,2.56854135,3893.3,3892.4,2.56909187]
[1761028555190,0.02588058,3893.4,3892.3,2.56916847]
[1761028555191,3.02446358,3893.4,3892.3,2.56916847]
[1761028555367,0.456,3893.4,3892.6,2.56892446]
[1761028555568,0.456,3893.4,3892.6,2.56892053]
[1761028556193,0.456,3893.4,3892.7,2.5689042]
[1761028556608,0.02588058,3893.3,3892.6,2.56896306]
[1761028556803,0.456,3893.4,3892.7,2.56890047]
[1761028557209,0.48188058,3893.4,3892.6,2.56897684]
[1761028557424,0.456,3894.2,3892.6,0.53950002]
[1761028557722,0.128,3893.6,3892.9,0.128]
[1761028557892,0.128,3893.6,3893.1,2.56863704]
[1761028558092,0.128,3893.6,3893.0,2.56869981]
[1761028558825,0.128,3893.6,3893.3,2.56850264]
[1761028559699,0.128,3893.6,3893.4,2.56840374]
[1761028561294,0.128,3893.6,3893.2,2.56852936]
[1761028561525,0.128,3893.6,3893.3,2.56851133]
[1761028561719,0.128,3893.6,3893.1,2.56858263]
[1761028561920,0.5881,3893.6,3893.2,2.56857082]
[1761028562403,0.128,3893.6,3893.3,2.56849848]
[1761028562612,0.128,3893.6,3893.2,2.56857095]
[1761028563115,0.5881,3893.6,3893.1,2.56862678]
[1761028563514,0.5881,3893.6,3893.2,2.56854855]
[1761028563713,0.5881,3893.6,3893.1,2.56862336]
[1761028563913,0.5881,3893.6,3892.6,0.53950002]
[1761028563914,0.02588058,3893.7,3892.7,2.5688841]
[1761028564124,0.128,3893.4,3893.0,2.56866846]
[1761028564329,0.128,3893.4,3893.0,2.56866119]
[1761028565435,0.5881,3893.4,3893.0,2.56870588]
[1761028565798,0.4601,3893.3,3893.0,2.56870588]
[1761028566193,0.4601,3893.3,3893.0,2.56870063]
[1761028566620,0.4601,3893.3,3893.0,0.002]
[1761028566816,0.128,3893.4,3893.1,2.56860384]
[1761028568106,0.128,3893.4,3893.0,0.002]
[1761028568308,3.0285577,3893.4,3893.0,0.002]
[1761028568526,0.128,3893.1,3893.0,0.002]
[1761028569313,0.5881,3893.1,3893.0,0.002]
[1761028570530,3.15674709,3893.1,3893.0,0.002]
[1761028570905,0.5881,3893.1,3893.0,0.002]
[1761028571104,0.61398058,3893.1,3893.0,0.002]
[1761028571727,0.96252285,3893.1,3893.0,0.002]
[1761028572470,3.53116994,3893.1,3893.0,0.002]
[1761028572868,5.25916994,3893.1,3893.0,0.002]
[1761028573066,5.23328936,3893.1,3893.0,0.002]
[1761028574534,0.2363,3893.9,3893.0,0.002]
[1761028574735,2.56836085,3893.6,3893.0,0.002]
[1761028574965,1.728,3893.5,3893.0,0.002]
[1761028575168,3.02851831,3893.5,3893.0,0.002]
[1761028575366,3.02855315,3893.4,3893.0,0.002]
[1761028575569,1.01978082,3893.4,3893.0,0.002]
[1761028575971,0.4601,3893.4,3893.0,0.002]
[1761028577889,0.02588058,3893.3,3893.0,0.002]
[1761028578293,0.4658,3893.2,3893.0,0.002]
[1761028579100,0.4658,3893.4,3893.0,0.002]
[1761028581995,7.72,3894.6,3893.0,0.002]
[1761028581996,0.4658,3894.5,3893.1,0.02568647]
[1761028582194,0.4658,3894.5,3893.8,2.56812063]
[1761028582387,0.4658,3894.5,3893.9,2.56811936]
[1761028582785,0.4658,3894.5,3894.0,2.5680395]
[1761028583109,0.4658,3894.5,3893.7,2.56824803]
[1761028583110,0.4658,3894.5,3893.9,2.56810358]
[1761028583692,0.02588058,3894.4,3893.1,2.56860062]
[1761028583892,0.02588058,3894.4,3893.0,0.002]
[1761028583893,0.02588058,3894.4,3893.9,2.56811077]
[1761028584097,0.02588058,3894.4,3894.0,2.56803542]
[1761028584680,0.128,3894.1,3894.0,2.56803542]
[1761028587107,0.128,3894.1,3893.5,0.128]
[1761028587307,0.128,3893.9,3893.8,2.56816699]
[1761028587891,0.128,3893.9,3893.7,2.5682377]
[1761028588092,0.128,3893.9,3893.8,2.56818532]
[1761028588781,0.128,3893.9,3893.8,3.08183257]
[1761028589512,0.001,3894.5,3894.1,2.56798375]
[1761028591215,0.128,3894.1,3894.0,2.56805341]
[1761028591715,0.001,3894.5,3894.4,2.56778964]
[1761028591916,0.001,3894.5,3894.0,2.56800841]
[1761028592084,0.001,3894.5,3894.3,2.5677901]
[1761028592414,0.001,3894.5,3894.4,2.56778964]
[1761028593515,0.001,3894.5,3894.1,0.26960084]
[1761028593683,0.4691,3894.5,3894.1,0.26960084]
[1761028593884,0.4691,3894.5,3894.2,2.56790328]
[1761028594111,0.4691,3894.5,3894.3,2.56785188]
[1761028594907,8.27376738,3895.0,3894.3,2.56785188]
[1761028594908,0.40275793,3897.0,3894.9,2.71]
[1761028595105,1.42333018,3897.1,3895.3,1.728]
[1761028595306,1.29533018,3897.1,3896.5,2.56639862]
[1761028595480,1.29533018,3897.1,3896.0,2.56672871]
[1761028595812,1.29533018,3897.1,3896.9,2.56612345]
[1761028596011,1.29533018,3897.1,3897.0,2.56607646]
[1761028596199,1.29533018,3897.1,3896.9,0.02566142]
[1761028596400,1.29533018,3897.1,3896.9,2.56608789]
[1761028596593,1.29533018,3897.1,3897.0,2.56607646]
[1761028598389,1.29533018,3897.1,3896.7,2.56626353]
[1761028598595,1.29533018,3897.1,3896.8,2.56620817]
[1761028598801,1.29533018,3897.1,3897.0,2.56607646]
[1761028599001,1.29533018,3897.1,3896.3,0.33383502]
[1761028599200,1.29533018,3897.1,3896.7,2.5662105]
[1761028599402,1.29533018,3897.1,3896.6,2.56627582]
[1761028599600,1.29533018,3897.1,3896.6,2.56632197]
[1761028599801,0.4681,3897.0,3896.7,2.56624025]
[1761028600924,0.2161,3896.9,3896.6,2.56633736]
[1761028601108,0.2161,3896.9,3896.7,2.5662524]
[1761028601316,0.4681,3896.8,3896.3,2.56652471]
[1761028601539,0.4681,3896.8,3896.4,2.566447]
[1761028601845,0.4681,3896.8,3896.5,2.56639224]
[1761028603796,0.4681,3896.8,3895.5,0.77184018]
[1761028604028,0.4681,3896.8,3896.2,2.56659448]
[1761028604296,0.34482377,3896.7,3895.2,1.27875195]
[1761028604541,2.911151,3896.7,3895.2,0.77187195]
[1761028604737,0.4681,3896.6,3896.0,2.5667341]
[1761028605229,0.128,3896.2,3896.0,2.5667341]
[1761028605442,0.128,3896.2,3895.6,0.128]
[1761028605804,0.128,3896.2,3896.1,2.56666923]
[1761028606436,0.41405302,3896.9,3896.4,2.56644136]
[1761028606596,0.39064832,3896.8,3896.5,2.56640126]
[1761028607233,0.39064832,3896.8,3896.4,2.56643719]
[1761028607535,0.128,3896.5,3896.4,2.56643719]
[1761028608210,0.128,3896.8,3896.6,2.56632453]
[1761028608904,0.128,3896.8,3896.7,2.59193676]
[1761028609242,0.128,3896.8,3896.7,2.56627402]
[1761028610003,0.001,3897.0,3896.9,2.56614231]
[1761028610204,0.001,3897.0,3896.9,3.07938394]
[1761028611838,0.001,3897.0,3896.9,3.61192536]
[1761028612144,1e-08,3897.1,3897.0,3.33055646]
[1761028612609,1e-08,3897.1,3897.0,3.07295646]
[1761028612912,1e-08,3897.1,3895.8,16.42194916]
[1761028613104,1e-08,3897.1,3895.9,1.64219492]
[1761028613438,1e-08,3897.1,3897.0,2.56607646]
[1761028613773,1e-08,3897.1,3897.0,2.59173722]
[1761028614106,1e-08,3897.1,3897.0,2.56607646]
[1761028615051,0.46810001,3897.1,3896.7,2.56625944]
[1761028615217,0.46810001,3897.1,3895.4,16.42194916]
[1761028615408,0.2161,3897.0,3896.4,2.5664566]
[1761028615726,0.4681,3896.9,3896.3,2.56648289]
[1761028615920,0.4681,3896.9,3896.4,2.56645631]
[1761028616129,0.4681,3896.9,3896.5,2.56640475]
[1761028616708,0.4681,3896.9,3895.2,3.07412625]
[1761028616709,0.4681,3896.9,3895.0,0.002]
[1761028616904,2.56616286,3896.9,3895.0,0.002]
[1761028617133,1.13522629,3896.8,3895.2,2.56726227]
[1761028617338,3.25041012,3896.8,3895.6,2.56699866]
[1761028617549,2.1961,3896.7,3895.7,2.56692999]
[1761028617757,0.4681,3896.7,3895.0,0.002]
[1761028617963,1.72800001,3897.1,3895.2,16.42194916]
[1761028617964,1e-08,3897.1,3895.2,16.42194916]
[1761028618140,1e-08,3897.1,3896.5,2.56635544]
[1761028618536,1e-08,3897.1,3896.6,2.56632414]
[1761028618733,0.46810001,3897.1,3896.6,2.56632414]
[1761028619069,0.46810001,3897.1,3896.7,2.56626669]
[1761028619359,0.46810001,3897.1,3896.7,2.56621385]
[1761028619744,0.46810001,3897.1,3896.6,2.56633166]
[1761028619946,0.79310177,3897.1,3895.3,2.56719636]
[1761028620255,0.128,3896.7,3896.3,2.56650771]
[1761028620456,0.128,3896.7,3896.3,2.56647435]
[1761028620658,0.6841,3896.6,3895.0,0.002]
[1761028620959,0.128,3896.2,3895.9,2.56674254]
[1761028621142,0.128,3896.2,3896.0,2.56672763]
[1761028621332,0.128,3896.2,3896.1,2.56666923]
[1761028621749,0.128,3896.2,3895.7,2.56686762]
[1761028621942,0.128,3896.2,3896.0,2.56673296]
[1761028622161,0.5913,3896.2,3895.9,2.56679916]
[1761028622361,0.5913,3896.2,3894.6,0.002]
[1761028622362,0.2208,3895.7,3894.6,0.002]
[1761028622661,0.128,3895.4,3894.7,0.128]
[1761028622954,0.128,3895.1,3894.6,0.002]
[1761028623127,4.91197272,3895.1,3894.6,0.002]
[1761028623330,4.88662818,3895.1,3894.6,0.002]
[1761028624265,2.1913,3895.1,3894.6,0.002]
[1761028624761,2.1913,3895.1,3894.6,2.5696244]
[1761028624961,2.1913,3895.1,3894.7,0.02567591]
[1761028625372,1.728,3895.1,3894.7,0.02567591]
[1761028625535,1.728,3895.1,3895.0,2.56939409]
[1761028625736,1.728,3895.1,3895.0,0.002]
[1761028625931,1.728,3895.1,3895.0,2.56939409]
[1761028626243,0.2208,3895.7,3895.0,3.08562874]
[1761028626441,0.4633,3896.4,3895.1,0.02567328]
[1761028626638,0.2208,3896.6,3895.9,2.56677056]
[1761028626840,2.4121,3896.6,3895.9,2.56677056]
[1761028627144,0.6841,3896.6,3895.9,2.56677056]
[1761028627360,0.2208,3896.6,3895.0,2.56938302]
[1761028627558,0.2208,3896.6,3895.8,2.56681229]
[1761028627559,2.1913,3896.5,3895.8,2.56681229]
[1761028627760,0.4633,3896.5,3895.5,2.56700957]
[1761028628060,0.2208,3895.2,3895.0,0.002]
[1761028628458,0.4633,3895.5,3895.0,2.56938098]
[1761028628459,0.2208,3895.4,3895.0,2.56938098]
[1761028629079,0.2208,3895.4,3895.1,2.56727358]
[1761028629252,0.2208,3895.4,3895.0,0.002]
[1761028629638,0.4633,3895.3,3895.0,0.002]
[1761028629945,0.2208,3895.4,3895.0,0.002]
[1761028630774,0.40265625,3896.1,3895.1,0.25694498]
[1761028630944,2.56649687,3896.4,3895.5,2.56699972]
[1761028631145,1.728,3896.2,3895.4,2.59280176]
[1761028631366,1.728,3896.3,3895.7,2.56688214]
[1761028631675,1.728,3896.3,3895.6,0.02566998]
[1761028631970,3.02977842,3896.4,3895.5,2.59273217]
[1761028631971,0.4633,3896.2,3895.5,2.59273217]
[1761028632136,2.1913,3896.2,3895.5,2.56706153]
[1761028632340,2.1913,3896.2,3895.0,0.002]
[1761028632341,0.2208,3895.6,3895.0,0.002]
[1761028632563,0.2208,3895.6,3895.2,2.56720624]
[1761028632774,0.2208,3895.6,3895.2,2.56726227]
[1761028633088,0.2208,3895.6,3895.1,0.25694072]
[1761028633089,0.4633,3895.5,3895.1,2.82425869]
[1761028633382,0.2208,3895.6,3895.2,2.56724737]
[1761028633541,0.2208,3895.6,3895.2,3.1066038]
[1761028633943,0.2208,3895.6,3895.2,3.10660101]
[1761028634146,0.128,3895.5,3895.2,3.10660101]
[1761028634475,0.5913,3895.5,3895.0,0.002]
[1761028634646,0.5913,3895.5,3895.1,2.56730496]
[1761028634975,0.5913,3895.5,3895.0,0.002]
[1761028634976,0.128,3895.5,3895.2,2.56725575]
[1761028635166,0.5913,3895.5,3895.2,2.56725575]
[1761028635365,0.128,3895.5,3895.4,2.56713046]
[1761028636178,0.128,3895.5,3895.3,2.56718314]
[1761028636495,0.128,3895.5,3895.3,2.56719305]
[1761028637170,0.5891,3895.5,3895.2,2.567242]
[1761028637761,0.5891,3895.5,3895.3,2.56718077]
[1761028637956,0.128,3895.5,3895.3,2.56718077]
[1761028638277,0.128,3895.5,3895.4,2.56713046]
[1761028639483,0.128,3895.5,3895.2,2.5672162]
[1761028640481,0.128,3895.5,3895.0,0.002]
[1761028640482,0.4611,3895.4,3895.0,0.002]
[1761028640656,0.128,3895.2,3895.0,0.002]
[1761028640999,0.128,3895.2,3895.0,2.56938273]
[1761028641669,0.128,3895.2,3895.1,2.56732818]
[1761028642180,0.128,3895.2,3895.0,2.56937237]
[1761028642483,0.128,3895.2,3895.0,0.002]
[1761028642783,0.4611,3895.1,3895.0,0.002]
[1761028642983,0.4611,3895.1,3895.0,2.56939409]
[1761028643160,0.128,3895.2,3895.0,2.56939409]
[1761028643352,0.128,3895.2,3895.1,2.56732818]
[1761028643555,0.128,3895.2,3895.1,3.10667934]
[1761028646684,0.128,3895.2,3895.1,3.08100606]
[1761028647254,0.5891,3895.2,3895.0,2.56939359]
[1761028647457,0.5891,3895.2,3895.0,0.002]
[1761028647687,0.4611,3895.1,3895.0,0.002]
[1761028650284,4.75642818,3895.1,3895.0,0.002]
[1761028652988,5.26330818,3895.1,3895.0,0.002]
[1761028655893,5.66612564,3895.1,3895.0,0.002]
[1761028656112,5.26330818,3895.1,3895.0,0.002]
[1761028659206,5.66613363,3895.1,3895.0,0.002]
[1761028670663,5.15925363,3895.1,3895.0,0.002]
[1761028670873,1.728,3895.1,3895.0,0.002]
[1761028671073,2.1839,3895.1,3895.0,0.002]
[1761028671273,4.75122818,3895.1,3895.0,0.002]
[1761028671732,4.29532818,3895.1,3895.0,0.002]
[1761028671932,2.56732818,3895.1,3895.0,0.002]
[1761028672245,4.29532818,3895.1,3895.0,0.002]
[1761028672562,1.728,3895.1,3895.0,0.002]
[1761028672950,0.40271905,3895.4,3895.0,0.002]
[1761028673352,2.13071905,3895.4,3895.0,0.25894775]
[1761028673757,0.40271905,3895.4,3895.0,0.25894775]
[1761028674063,0.40271905,3895.4,3895.0,0.002]
[1761028675249,2.56732818,3895.1,3895.0,0.002]
[1761028675634,3.02322818,3895.1,3895.0,0.002]
[1761028675836,2.56732818,3895.1,3895.0,0.002]
[1761028677042,0.4559,3895.7,3895.0,0.002]
[1761028677336,2.5673027,3895.2,3895.0,0.002]
[1761028678043,2.56706927,3895.5,3895.0,0.002]
[1761028678247,16.34731502,3895.9,3895.0,0.002]
[1761028678570,2.56724229,3895.3,3895.0,0.002]
[1761028678753,2.56726737,3895.2,3895.0,0.002]
[1761028680172,2.56715561,3895.4,3895.0,0.002]
[1761028680350,2.56707928,3895.5,3895.0,0.002]
[1761028680555,2.56692486,3895.8,3895.0,0.002]
[1761028680763,2.56698145,3895.7,3895.1,0.25951289]
[1761028681071,0.80543263,3896.0,3895.2,2.59287705]
[1761028681281,0.80543263,3896.0,3895.3,2.56713674]
[1761028681447,0.40273423,3896.0,3895.3,2.56713674]
[1761028681648,2.13073423,3896.0,3895.4,0.54196004]
[1761028682072,2.96948502,3896.0,3895.4,0.54196004]
[1761028682470,0.40273423,3896.0,3895.5,0.02567064]
[1761028682672,0.40273423,3896.0,3895.4,0.54196004]
[1761028682673,0.128,3895.5,3895.4,2.56713046]
[1761028682876,0.128,3896.0,3895.9,2.5667532]
[1761028683055,0.128,3896.0,3895.9,2.82342852]
[1761028684078,2.56702241,3897.1,3896.3,2.56653401]
[1761028684278,0.128,3896.4,3896.3,2.56653401]
[1761028684576,0.00100001,3897.1,3896.3,2.56653401]
[1761028684779,0.128,3896.7,3896.4,2.56645723]
[1761028684989,0.4316,3897.0,3895.9,0.25667532]
[1761028685205,0.128,3896.3,3895.6,2.56697962]
[1761028685407,0.128,3896.0,3895.6,2.56697962]
[1761028685585,0.128,3896.0,3895.4,0.128]
[1761028685793,0.128,3896.0,3895.6,2.56699532]
[1761028686106,0.128,3896.0,3895.9,2.56680099]
[1761028686610,0.128,3896.0,3895.8,2.5668559]
[1761028687210,0.128,3896.0,3895.8,0.5133813]
[1761028687379,0.128,3896.0,3895.9,2.56680099]
[1761028688583,0.128,3896.0,3895.8,2.56684589]
[1761028688932,0.128,3896.0,3895.9,2.56680099]
[1761028689219,0.128,3896.0,3895.4,2.69507969]
[1761028689375,0.128,3896.0,3895.7,2.56692578]
[1761028689801,0.128,3896.0,3895.8,2.56684049]
[1761028690811,0.128,3896.0,3895.5,0.26950797]
[1761028691204,0.128,3896.0,3895.6,2.56698963]
[1761028691512,0.128,3896.0,3895.5,0.26950797]
[1761028691709,0.128,3896.0,3895.7,2.56691932]
[1761028692733,0.128,3896.0,3895.6,0.29645988]
[1761028692892,0.128,3896.0,3895.8,2.56686037]
[1761028693515,0.128,3896.0,3895.9,2.56680099]
[1761028693701,0.128,3896.5,3896.1,2.56665167]
[1761028693923,0.128,3896.5,3895.8,0.128]
[1761028694115,0.128,3896.0,3895.5,2.56701362]
[1761028694308,0.128,3896.0,3895.5,0.5262194]
[1761028694812,0.128,3896.0,3895.9,2.56680099]
[1761028695214,0.128,3896.0,3895.7,2.56691844]
[1761028695215,0.128,3896.0,3895.4,0.128]
[1761028695415,0.128,3896.0,3895.6,2.56699866]
[1761028695598,0.128,3896.0,3895.5,2.56705383]
[1761028695795,0.128,3896.0,3895.4,0.128]
[1761028696035,0.128,3896.0,3895.5,2.56705835]
[1761028696196,0.128,3896.0,3895.5,2.56706216]
[1761028696401,0.128,3896.0,3895.4,0.128]
[1761028696602,0.128,3896.0,3895.6,2.56699691]